[Event "Late-Titled-Tuesday-Blitz-January-16-2024"]
[Site "Chess.com"]
[Date "2024.01.16"]
[Round "4"]
[White "chessisveryfun1264"]
[Black "krzyzan94"]
[Result "0-1"]
[WhiteElo "2582"]
[BlackElo "2820"]
[TimeControl "180+1"]
[EndTime "14:37:18 PST"]
[Termination "krzyzan94 won by resignation"]

1. Nf3 {[%clk 0:03:00.9]} 1... Nf6 {[%clk 0:02:59.1]} 2. b3 {[%clk 0:02:59.7]}
2... g6 {[%clk 0:02:58.4]} 3. Bb2 {[%clk 0:03:00.6]} 3... Bg7 {[%clk 0:02:59]}
4. c4 {[%clk 0:03:01]} 4... O-O {[%clk 0:02:57.7]} 5. g3 {[%clk 0:03:01]} 5...
c5 {[%clk 0:02:57.8]} 6. Bg2 {[%clk 0:03:01.4]} 6... Nc6 {[%clk 0:02:58.2]} 7.
O-O {[%clk 0:03:02.1]} 7... d6 {[%clk 0:02:51.4]} 8. d4 {[%clk 0:03:02.4]} 8...
cxd4 {[%clk 0:02:50.7]} 9. Nxd4 {[%clk 0:03:03]} 9... Nxd4 {[%clk 0:02:49.1]}
10. Qxd4 {[%clk 0:03:03.9]} 10... Qa5 {[%clk 0:02:46.9]} 11. Nc3 {[%clk
0:02:50.6]} 11... Ne8 {[%clk 0:02:12]} 12. Qd2 {[%clk 0:02:33.1]} 12... Nc7
{[%clk 0:02:04.4]} 13. Rfd1 {[%clk 0:02:31]} 13... Qh5 {[%clk 0:02:00.8]} 14.
Rac1 {[%clk 0:02:26.4]} 14... Rb8 {[%clk 0:01:54.7]} 15. e4 {[%clk 0:02:19.4]}
15... Bh3 {[%clk 0:01:48.8]} 16. Nd5 {[%clk 0:02:14.6]} 16... Nxd5 {[%clk
0:01:44.8]} 17. Bxg7 {[%clk 0:02:14.9]} 17... Bxg2 {[%clk 0:01:34.3]} 18. Kxg2
{[%clk 0:02:04]} 18... Nf4+ {[%clk 0:01:21.4]} 19. Qxf4 {[%clk 0:02:03.5]} 19...
Kxg7 {[%clk 0:01:22.3]} 20. Rd5 {[%clk 0:02:02.3]} 20... Qh6 {[%clk 0:01:20.9]}
21. e5 {[%clk 0:01:53.9]} 21... Qxf4 {[%clk 0:01:08.3]} 22. gxf4 {[%clk
0:01:54.8]} 22... dxe5 {[%clk 0:00:57.1]} 23. fxe5 {[%clk 0:01:55.7]} 23... Rfc8
{[%clk 0:00:57.3]} 24. Rd7 {[%clk 0:01:52.5]} 24... Kf8 {[%clk 0:00:57.7]} 25.
Rcd1 {[%clk 0:01:53]} 25... Ke8 {[%clk 0:00:57.5]} 26. f4 {[%clk 0:01:51.7]}
26... Rc6 {[%clk 0:00:54.3]} 27. Kf3 {[%clk 0:01:51]} 27... a5 {[%clk
0:00:51.8]} 28. Ke4 {[%clk 0:01:46.7]} 28... a4 {[%clk 0:00:51.2]} 29. h4 {[%clk
0:01:44.2]} 29... axb3 {[%clk 0:00:50.4]} 30. axb3 {[%clk 0:01:45.1]} 30... Rb6
{[%clk 0:00:49.7]} 31. R7d3 {[%clk 0:01:42.4]} 31... f6 {[%clk 0:00:39.5]} 32.
h5 {[%clk 0:01:40.7]} 32... Kf7 {[%clk 0:00:38.7]} 33. hxg6+ {[%clk 0:01:40.3]}
33... hxg6 {[%clk 0:00:39.6]} 34. Rh1 {[%clk 0:01:40]} 34... Ke6 {[%clk
0:00:36.3]} 35. Rh6 {[%clk 0:01:36.5]} 35... Rg8 {[%clk 0:00:28.7]} 36. Rg3
{[%clk 0:01:26.2]} 36... f5+ {[%clk 0:00:27.7]} 37. Kd4 {[%clk 0:01:25.7]} 37...
Kf7 {[%clk 0:00:24.8]} 38. Rg5 {[%clk 0:01:15.4]} 38... Rxb3 {[%clk 0:00:23.4]}
39. Rh7+ {[%clk 0:01:11.7]} 39... Rg7 {[%clk 0:00:23.7]} 40. e6+ {[%clk
0:01:11.2]} 40... Kf6 {[%clk 0:00:22.8]} 41. Rh8 {[%clk 0:00:58.5]} 41... Kxe6
{[%clk 0:00:22.6]} 42. Rf8 {[%clk 0:00:59.4]} 42... Rf3 {[%clk 0:00:21.4]} 43.
Kc5 {[%clk 0:00:56.7]} 43... Rxf4 {[%clk 0:00:20.6]} 44. Rb8 {[%clk 0:00:57]}
44... Kf6 {[%clk 0:00:19.8]} 45. Rg1 {[%clk 0:00:57.7]} 45... g5 {[%clk
0:00:18.9]} 46. Rxb7 {[%clk 0:00:58.2]} 46... g4 {[%clk 0:00:19.5]} 47. Kd5
{[%clk 0:00:57.1]} 47... e6+ {[%clk 0:00:19.3]} 48. Kc6 {[%clk 0:00:57.7]} 48...
Rxc4+ {[%clk 0:00:18.9]} 49. Kb5 {[%clk 0:00:57.3]} 49... Rxb7+ {[%clk 0:00:18]}
50. Kxc4 {[%clk 0:00:58.2]} 50... Rd7 {[%clk 0:00:18.5]} 0-1

[Event "Late-Titled-Tuesday-Blitz-January-16-2024"]
[Site "Chess.com"]
[Date "2024.01.16"]
[Round "4"]
[White "IraZyne"]
[Black "SmirnovTimofey2000"]
[Result "1-0"]
[WhiteElo "2251"]
[BlackElo "1980"]
[TimeControl "180+1"]
[EndTime "14:37:19 PST"]
[Termination "IraZyne won on time"]

1. e4 {[%clk 0:02:59.4]} 1... e5 {[%clk 0:02:59.8]} 2. Bc4 {[%clk 0:02:57.2]}
2... Nf6 {[%clk 0:02:58.7]} 3. d3 {[%clk 0:02:55]} 3... Nc6 {[%clk 0:02:53.5]}
4. Nf3 {[%clk 0:02:52.3]} 4... Bc5 {[%clk 0:02:52.5]} 5. O-O {[%clk 0:02:51.4]}
5... d6 {[%clk 0:02:51.1]} 6. h3 {[%clk 0:02:49.3]} 6... h6 {[%clk 0:02:50.7]}
7. c3 {[%clk 0:02:49.1]} 7... a6 {[%clk 0:02:50.1]} 8. Nbd2 {[%clk 0:02:47.9]}
8... O-O {[%clk 0:02:49.7]} 9. a4 {[%clk 0:02:46.8]} 9... a5 {[%clk 0:02:34.3]}
10. Nb3 {[%clk 0:02:43.1]} 10... Ba7 {[%clk 0:02:28.6]} 11. Re1 {[%clk
0:02:43.1]} 11... Be6 {[%clk 0:02:23.6]} 12. Bb5 {[%clk 0:02:34.8]} 12... Ne7
{[%clk 0:02:11.3]} 13. Be3 {[%clk 0:02:33.9]} 13... Bxe3 {[%clk 0:02:06.5]} 14.
fxe3 {[%clk 0:02:32.3]} 14... c6 {[%clk 0:02:05.3]} 15. Bc4 {[%clk 0:02:30.8]}
15... Bxc4 {[%clk 0:02:05]} 16. dxc4 {[%clk 0:02:29.8]} 16... Nxe4 {[%clk
0:02:02.4]} 17. c5 {[%clk 0:02:22.1]} 17... Ng6 {[%clk 0:01:37.9]} 18. Qd3
{[%clk 0:02:05.4]} 18... d5 {[%clk 0:01:34.2]} 19. Rad1 {[%clk 0:01:51.1]} 19...
Nf6 {[%clk 0:01:19.7]} 20. Qc2 {[%clk 0:01:44.2]} 20... Qe7 {[%clk 0:01:10.9]}
21. Qf2 {[%clk 0:01:36.8]} 21... Ne4 {[%clk 0:01:09.1]} 22. Qc2 {[%clk
0:01:33.9]} 22... Nxc5 {[%clk 0:01:06.5]} 23. c4 {[%clk 0:01:29.8]} 23... Nxb3
{[%clk 0:01:00.6]} 24. Qxb3 {[%clk 0:01:29.2]} 24... dxc4 {[%clk 0:00:58.9]} 25.
Qxc4 {[%clk 0:01:28.3]} 25... Qb4 {[%clk 0:00:53.6]} 26. Qc2 {[%clk 0:01:21.6]}
26... Rad8 {[%clk 0:00:48.1]} 27. b3 {[%clk 0:01:13.1]} 27... e4 {[%clk
0:00:40]} 28. Nd4 {[%clk 0:01:12]} 28... Ne5 {[%clk 0:00:35.7]} 29. Rf1 {[%clk
0:01:05.7]} 29... Nd3 {[%clk 0:00:33]} 30. Qe2 {[%clk 0:01:03.8]} 30... Qd6
{[%clk 0:00:19.7]} 31. Nf5 {[%clk 0:00:55.4]} 31... Qg6 {[%clk 0:00:18.2]} 32.
Ne7+ {[%clk 0:00:54.6]} 32... Kh8 {[%clk 0:00:15.7]} 33. Nxg6+ {[%clk
0:00:54.5]} 33... fxg6 {[%clk 0:00:16.6]} 34. Qg4 {[%clk 0:00:54]} 34... g5
{[%clk 0:00:10.5]} 35. Qxe4 {[%clk 0:00:52.6]} 35... Rxf1+ {[%clk 0:00:07]} 36.
Rxf1 {[%clk 0:00:51.2]} 36... Nc5 {[%clk 0:00:03.3]} 37. Qe7 {[%clk 0:00:50.8]}
1-0

[Event "Late-Titled-Tuesday-Blitz-January-16-2024"]
[Site "Chess.com"]
[Date "2024.01.16"]
[Round "4"]
[White "aa175"]
[Black "Redzishchess"]
[Result "1-0"]
[WhiteElo "2678"]
[BlackElo "2463"]
[TimeControl "180+1"]
[EndTime "14:37:20 PST"]
[Termination "aa175 won on time"]

1. d4 {[%clk 0:03:00.9]} 1... Nf6 {[%clk 0:02:59.1]} 2. Bf4 {[%clk 0:03:01.6]}
2... d6 {[%clk 0:02:58.4]} 3. e3 {[%clk 0:03:02.2]} 3... g6 {[%clk 0:02:58.7]}
4. Nf3 {[%clk 0:03:02.9]} 4... Bg7 {[%clk 0:02:59.3]} 5. Bd3 {[%clk 0:03:03.6]}
5... b6 {[%clk 0:02:59.1]} 6. h4 {[%clk 0:03:04.2]} 6... Bb7 {[%clk 0:02:58.2]}
7. Nbd2 {[%clk 0:03:04.5]} 7... Nbd7 {[%clk 0:02:51.3]} 8. Qe2 {[%clk
0:02:57.3]} 8... c5 {[%clk 0:02:45.6]} 9. c3 {[%clk 0:02:57.2]} 9... h5 {[%clk
0:02:29]} 10. Ng5 {[%clk 0:02:56.6]} 10... O-O {[%clk 0:02:28.1]} 11. f3 {[%clk
0:02:54.5]} 11... e5 {[%clk 0:02:27.1]} 12. dxe5 {[%clk 0:02:55.4]} 12... Nxe5
{[%clk 0:02:16.8]} 13. Bxe5 {[%clk 0:02:45.9]} 13... dxe5 {[%clk 0:02:17.7]} 14.
O-O-O {[%clk 0:02:44.8]} 14... Qe7 {[%clk 0:02:09.4]} 15. Nde4 {[%clk
0:02:44.6]} 15... Rad8 {[%clk 0:01:10.3]} 16. Nxf6+ {[%clk 0:02:30.5]} 16...
Bxf6 {[%clk 0:01:11.2]} 17. Ne4 {[%clk 0:02:26]} 17... Bxe4 {[%clk 0:00:48.8]}
18. Bxe4 {[%clk 0:02:26.9]} 18... Rxd1+ {[%clk 0:00:49.2]} 19. Kxd1 {[%clk
0:02:06.3]} 19... Rd8+ {[%clk 0:00:48.1]} 20. Kc2 {[%clk 0:02:05.6]} 20... Qe6
{[%clk 0:00:33.6]} 21. b3 {[%clk 0:02:00.2]} 21... Bg7 {[%clk 0:00:27.1]} 22. g4
{[%clk 0:01:58.7]} 22... f5 {[%clk 0:00:27.5]} 23. gxf5 {[%clk 0:01:55]} 23...
gxf5 {[%clk 0:00:28.4]} 24. Bd3 {[%clk 0:01:55.5]} 24... Qf6 {[%clk 0:00:21.1]}
25. Rg1 {[%clk 0:01:52.6]} 25... e4 {[%clk 0:00:17.2]} 26. Bc4+ {[%clk 0:01:43]}
26... Kh8 {[%clk 0:00:17.1]} 27. Rxg7 {[%clk 0:01:37.5]} 27... Kxg7 {[%clk
0:00:13.8]} 28. fxe4 {[%clk 0:01:37.3]} 28... fxe4 {[%clk 0:00:13.6]} 29. Qxh5
{[%clk 0:01:21.3]} 29... Qf2+ {[%clk 0:00:12.2]} 30. Kc1 {[%clk 0:01:22]} 30...
Qe1+ {[%clk 0:00:09.7]} 31. Kb2 {[%clk 0:01:22.4]} 31... Rd2+ {[%clk 0:00:10]}
32. Ka3 {[%clk 0:01:22.3]} 32... Qc1+ {[%clk 0:00:10]} 33. Ka4 {[%clk 0:01:23]}
33... Rxa2+ {[%clk 0:00:06.8]} 34. Kb5 {[%clk 0:01:23.6]} 34... Qd2 {[%clk
0:00:02]} 35. Qg5+ {[%clk 0:01:07.2]} 35... Kf8 {[%clk 0:00:01.8]} 36. Qf6+
{[%clk 0:00:56]} 36... Ke8 {[%clk 0:00:02.3]} 37. Bf7+ {[%clk 0:00:52.4]} 37...
Kf8 {[%clk 0:00:02.3]} 38. Bg6+ {[%clk 0:00:51.5]} 38... Kg8 {[%clk 0:00:02.8]}
39. Qf7+ {[%clk 0:00:52.1]} 39... Kh8 {[%clk 0:00:03.3]} 40. Kc6 {[%clk
0:00:48.8]} 1-0

[Event "Late-Titled-Tuesday-Blitz-January-16-2024"]
[Site "Chess.com"]
[Date "2024.01.16"]
[Round "4"]
[White "GlavkonVVS"]
[Black "Verony64"]
[Result "1-0"]
[WhiteElo "2450"]
[BlackElo "2176"]
[TimeControl "180+1"]
[EndTime "14:37:21 PST"]
[Termination "GlavkonVVS won by resignation"]

1. c4 {[%clk 0:02:42.6]} 1... e5 {[%clk 0:02:58.4]} 2. Nc3 {[%clk 0:02:42.7]}
2... d6 {[%clk 0:02:58.6]} 3. g3 {[%clk 0:02:43]} 3... f5 {[%clk 0:02:58.8]} 4.
Bg2 {[%clk 0:02:43.2]} 4... Nf6 {[%clk 0:02:58.6]} 5. d3 {[%clk 0:02:43.2]} 5...
c6 {[%clk 0:02:59]} 6. Rb1 {[%clk 0:02:42.6]} 6... Be7 {[%clk 0:02:59.1]} 7. b4
{[%clk 0:02:42.4]} 7... O-O {[%clk 0:02:59.6]} 8. b5 {[%clk 0:02:42.8]} 8... Qe8
{[%clk 0:02:57.1]} 9. bxc6 {[%clk 0:02:38]} 9... bxc6 {[%clk 0:02:55.3]} 10. Ba3
{[%clk 0:02:38.6]} 10... Be6 {[%clk 0:02:49.3]} 11. Nf3 {[%clk 0:02:37.6]} 11...
h6 {[%clk 0:02:39.8]} 12. Rb7 {[%clk 0:02:31.5]} 12... Nbd7 {[%clk 0:02:36.1]}
13. O-O {[%clk 0:02:23]} 13... Qh5 {[%clk 0:02:04.7]} 14. Nxe5 {[%clk
0:02:09.1]} 14... Nxe5 {[%clk 0:01:41.3]} 15. Rxe7 {[%clk 0:02:07.9]} 15... Rae8
{[%clk 0:01:31.3]} 16. Bxd6 {[%clk 0:02:05.7]} 16... Rxe7 {[%clk 0:01:17.7]} 17.
Bxe7 {[%clk 0:02:06.1]} 17... Re8 {[%clk 0:01:12.4]} 18. Bxf6 {[%clk 0:02:05.7]}
18... gxf6 {[%clk 0:01:10.3]} 19. e3 {[%clk 0:01:46.7]} 19... Qf7 {[%clk
0:01:03]} 20. Qc2 {[%clk 0:01:33.5]} 20... Rd8 {[%clk 0:01:02.7]} 21. Rd1 {[%clk
0:01:33]} 21... Qd7 {[%clk 0:01:00.4]} 22. Ne2 {[%clk 0:01:24.8]} 22... Nxc4
{[%clk 0:00:59.1]} 23. Nd4 {[%clk 0:01:18.4]} 23... Ne5 {[%clk 0:00:36.6]} 24.
Nxe6 {[%clk 0:01:10.6]} 24... Qxe6 {[%clk 0:00:37.5]} 25. d4 {[%clk 0:01:11]}
25... Nc4 {[%clk 0:00:22.3]} 26. Bh3 {[%clk 0:00:54.3]} 26... Nxe3 {[%clk
0:00:12.5]} 27. fxe3 {[%clk 0:00:52.9]} 27... Qxe3+ {[%clk 0:00:12.7]} 28. Qf2
{[%clk 0:00:53.2]} 28... Qxf2+ {[%clk 0:00:10]} 29. Kxf2 {[%clk 0:00:53.3]}
29... c5 {[%clk 0:00:08.8]} 30. d5 {[%clk 0:00:52]} 30... Rd6 {[%clk 0:00:09.4]}
31. Bxf5 {[%clk 0:00:52.1]} 31... Kf8 {[%clk 0:00:09.4]} 32. Be6 {[%clk
0:00:52.3]} 32... Ke7 {[%clk 0:00:10.3]} 33. Ke3 {[%clk 0:00:52.5]} 33... c4
{[%clk 0:00:09.2]} 34. Rc1 {[%clk 0:00:52.4]} 34... Ra6 {[%clk 0:00:10.1]} 35.
Rc2 {[%clk 0:00:52.6]} 35... Ra3+ {[%clk 0:00:08.9]} 36. Kd4 {[%clk 0:00:52.8]}
36... Kd6 {[%clk 0:00:09.8]} 37. Kxc4 {[%clk 0:00:53]} 37... Rf3 {[%clk
0:00:09.5]} 38. a4 {[%clk 0:00:49.8]} 38... Ra3 {[%clk 0:00:09.2]} 39. Kb4
{[%clk 0:00:49.9]} 39... Ra1 {[%clk 0:00:10.1]} 40. Rc6+ {[%clk 0:00:50]} 40...
Ke5 {[%clk 0:00:09.4]} 41. Rc7 {[%clk 0:00:49.6]} 41... Rb1+ {[%clk 0:00:09.8]}
42. Ka5 {[%clk 0:00:50.1]} 1-0

[Event "Late-Titled-Tuesday-Blitz-January-16-2024"]
[Site "Chess.com"]
[Date "2024.01.16"]
[Round "4"]
[White "Roedor"]
[Black "j_coca"]
[Result "0-1"]
[WhiteElo "2358"]
[BlackElo "2534"]
[TimeControl "180+1"]
[EndTime "14:37:22 PST"]
[Termination "j_coca won on time"]

1. Nf3 {[%clk 0:02:54.6]} 1... g6 {[%clk 0:02:52.8]} 2. c4 {[%clk 0:02:54]} 2...
Bg7 {[%clk 0:02:53.3]} 3. g3 {[%clk 0:02:54.6]} 3... f5 {[%clk 0:02:53.8]} 4.
Bg2 {[%clk 0:02:55.3]} 4... Nh6 {[%clk 0:02:54.3]} 5. O-O {[%clk 0:02:56]} 5...
O-O {[%clk 0:02:54.7]} 6. d4 {[%clk 0:02:54.9]} 6... Kh8 {[%clk 0:02:55.1]} 7.
Nc3 {[%clk 0:02:55.4]} 7... d6 {[%clk 0:02:55.5]} 8. e4 {[%clk 0:02:55.7]} 8...
Nc6 {[%clk 0:02:55.5]} 9. d5 {[%clk 0:02:53.7]} 9... Ne5 {[%clk 0:02:55.4]} 10.
Nxe5 {[%clk 0:02:53.5]} 10... dxe5 {[%clk 0:02:56.3]} 11. c5 {[%clk 0:02:43.5]}
11... f4 {[%clk 0:02:56]} 12. d6 {[%clk 0:02:24.7]} 12... exd6 {[%clk
0:02:55.4]} 13. cxd6 {[%clk 0:02:25.6]} 13... Qxd6 {[%clk 0:02:54.3]} 14. Qxd6
{[%clk 0:02:25]} 14... cxd6 {[%clk 0:02:55.2]} 15. Nb5 {[%clk 0:02:25.2]} 15...
Rf6 {[%clk 0:02:49.6]} 16. Rd1 {[%clk 0:02:23.8]} 16... Bf8 {[%clk 0:02:46.3]}
17. Nc7 {[%clk 0:02:20.7]} 17... Rb8 {[%clk 0:02:41.5]} 18. gxf4 {[%clk
0:02:09.2]} 18... exf4 {[%clk 0:02:41.1]} 19. Bd2 {[%clk 0:02:08.7]} 19... Kg8
{[%clk 0:02:36.1]} 20. Bc3 {[%clk 0:02:04.8]} 20... Rf7 {[%clk 0:02:36.3]} 21.
Nd5 {[%clk 0:02:00.4]} 21... f3 {[%clk 0:02:36.1]} 22. Bf1 {[%clk 0:01:59.6]}
22... Bg7 {[%clk 0:02:32.8]} 23. Bc4 {[%clk 0:01:57.2]} 23... Be6 {[%clk
0:02:31.5]} 24. Bb4 {[%clk 0:01:07.7]} 24... Be5 {[%clk 0:02:25.5]} 25. Bb3
{[%clk 0:00:59.6]} 25... Kg7 {[%clk 0:02:17.9]} 26. Ne3 {[%clk 0:00:54.4]} 26...
Bxb3 {[%clk 0:02:15.2]} 27. axb3 {[%clk 0:00:54.9]} 27... Rd7 {[%clk 0:02:09.2]}
28. Rxa7 {[%clk 0:00:52.5]} 28... Nf7 {[%clk 0:02:07.8]} 29. Nc4 {[%clk
0:00:50.8]} 29... Rbd8 {[%clk 0:02:06.7]} 30. Rd3 {[%clk 0:00:43.2]} 30... Ng5
{[%clk 0:01:54.4]} 31. h4 {[%clk 0:00:24.7]} 31... Nxe4 {[%clk 0:01:48.9]} 32.
Rxf3 {[%clk 0:00:23.6]} 32... Bxb2 {[%clk 0:01:48.4]} 33. Nxb2 {[%clk
0:00:14.4]} 33... d5 {[%clk 0:01:48.9]} 34. Rd3 {[%clk 0:00:12.2]} 34... Kf6
{[%clk 0:01:47]} 35. f3 {[%clk 0:00:12.4]} 35... Ng3 {[%clk 0:01:44.3]} 36. Bc3+
{[%clk 0:00:12.2]} 36... Kf5 {[%clk 0:01:42.6]} 37. Ra5 {[%clk 0:00:11.1]} 37...
Ne2+ {[%clk 0:01:41.7]} 38. Kf2 {[%clk 0:00:11.5]} 38... Nf4 {[%clk 0:01:42.6]}
39. Rd4 {[%clk 0:00:08.4]} 39... h6 {[%clk 0:01:40.3]} 40. Nd3 {[%clk
0:00:07.4]} 40... Ne6 {[%clk 0:01:39.9]} 41. Rg4 {[%clk 0:00:07]} 41... h5
{[%clk 0:01:38.1]} 42. Rg1 {[%clk 0:00:06.3]} 42... g5 {[%clk 0:01:38.4]} 43.
hxg5 {[%clk 0:00:06]} 43... Nxg5 {[%clk 0:01:39.3]} 44. Ne5 {[%clk 0:00:06.1]}
44... Rc7 {[%clk 0:01:39.2]} 45. Rc1 {[%clk 0:00:05.5]} 45... Rdc8 {[%clk
0:01:38.8]} 46. Rxd5 {[%clk 0:00:04.4]} 46... Rxc3 {[%clk 0:01:38.6]} 47. Rxc3
{[%clk 0:00:04.8]} 47... Rxc3 {[%clk 0:01:38.5]} 48. Nc4+ {[%clk 0:00:05.3]}
48... Kg6 {[%clk 0:01:35.7]} 49. Rb5 {[%clk 0:00:05.7]} 49... h4 {[%clk
0:01:33.6]} 50. Kg2 {[%clk 0:00:05.3]} 50... h3+ {[%clk 0:01:33.1]} 51. Kg3
{[%clk 0:00:05.3]} 51... Rxf3+ {[%clk 0:01:32.6]} 52. Kh2 {[%clk 0:00:05.7]}
52... Rf2+ {[%clk 0:01:32.9]} 53. Kh1 {[%clk 0:00:05.2]} 53... Ne4 {[%clk
0:01:27.2]} 54. Rb6+ {[%clk 0:00:04.4]} 54... Kg5 {[%clk 0:01:25.3]} 0-1

[Event "Late-Titled-Tuesday-Blitz-January-16-2024"]
[Site "Chess.com"]
[Date "2024.01.16"]
[Round "4"]
[White "Korchmar_Vasiliy"]
[Black "DishonorOnYourCow"]
[Result "1-0"]
[WhiteElo "2730"]
[BlackElo "2550"]
[TimeControl "180+1"]
[EndTime "14:37:23 PST"]
[Termination "Korchmar_Vasiliy won by resignation"]

1. e4 {[%clk 0:03:00.9]} 1... c5 {[%clk 0:02:58.4]} 2. d4 {[%clk 0:03:01]} 2...
cxd4 {[%clk 0:02:58.5]} 3. Qxd4 {[%clk 0:03:01.9]} 3... Nc6 {[%clk 0:02:58.4]}
4. Qd3 {[%clk 0:03:02.6]} 4... g6 {[%clk 0:02:53.4]} 5. Nc3 {[%clk 0:03:03]}
5... Bg7 {[%clk 0:02:53.1]} 6. Nf3 {[%clk 0:03:03.7]} 6... d6 {[%clk 0:02:52.5]}
7. Be2 {[%clk 0:03:04.3]} 7... Nf6 {[%clk 0:02:52]} 8. O-O {[%clk 0:03:05]} 8...
O-O {[%clk 0:02:51.4]} 9. Nd5 {[%clk 0:03:05.7]} 9... Bg4 {[%clk 0:02:47.1]} 10.
c3 {[%clk 0:03:06]} 10... Nd7 {[%clk 0:02:33.9]} 11. Bg5 {[%clk 0:03:05.7]}
11... h6 {[%clk 0:02:25.2]} 12. Bh4 {[%clk 0:03:05.5]} 12... g5 {[%clk
0:02:23.4]} 13. Bg3 {[%clk 0:03:05.7]} 13... Nde5 {[%clk 0:02:18.9]} 14. Nxe5
{[%clk 0:03:00.1]} 14... Nxe5 {[%clk 0:02:18.4]} 15. Qd2 {[%clk 0:02:54.6]}
15... Bxe2 {[%clk 0:02:17.1]} 16. Qxe2 {[%clk 0:02:55.5]} 16... Ng6 {[%clk
0:02:14.1]} 17. f4 {[%clk 0:02:46.9]} 17... e6 {[%clk 0:02:08.7]} 18. Ne3 {[%clk
0:02:41.3]} 18... gxf4 {[%clk 0:02:07.3]} 19. Bxf4 {[%clk 0:02:42]} 19... Nxf4
{[%clk 0:01:56.2]} 20. Rxf4 {[%clk 0:02:42.9]} 20... Kh7 {[%clk 0:01:52.7]} 21.
Raf1 {[%clk 0:02:43.1]} 21... Qe7 {[%clk 0:01:49.8]} 22. Qh5 {[%clk 0:02:40.9]}
22... f6 {[%clk 0:01:39.2]} 23. Ng4 {[%clk 0:02:32.8]} 23... Rf7 {[%clk
0:01:08.8]} 24. R1f3 {[%clk 0:02:22.1]} 24... f5 {[%clk 0:00:42.6]} 25. exf5
{[%clk 0:02:15.1]} 25... exf5 {[%clk 0:00:38.2]} 26. Rxf5 {[%clk 0:02:15.4]}
26... Rxf5 {[%clk 0:00:24.3]} 27. Qxf5+ {[%clk 0:02:16.3]} 27... Kh8 {[%clk
0:00:23.3]} 28. Qf7 {[%clk 0:02:16.7]} 28... Re8 {[%clk 0:00:17.2]} 29. Qxe7
{[%clk 0:02:08]} 29... Rxe7 {[%clk 0:00:18.1]} 30. Kf2 {[%clk 0:02:08.6]} 30...
Kg8 {[%clk 0:00:18.2]} 31. Ne3 {[%clk 0:02:08.1]} 31... Be5 {[%clk 0:00:17.1]}
32. Nc4 {[%clk 0:01:50.5]} 32... b5 {[%clk 0:00:15]} 33. Nxe5 {[%clk 0:01:46.6]}
33... dxe5 {[%clk 0:00:15.6]} 34. Ke3 {[%clk 0:01:44.5]} 34... Kg7 {[%clk
0:00:15.7]} 35. Ke4 {[%clk 0:01:43.5]} 35... Kg6 {[%clk 0:00:16.2]} 36. Rf5
{[%clk 0:01:34]} 36... Rd7 {[%clk 0:00:14.9]} 37. Rxe5 {[%clk 0:01:34]} 37...
Rd2 {[%clk 0:00:14.7]} 38. Rxb5 {[%clk 0:01:34.2]} 38... Rxg2 {[%clk 0:00:15]}
39. h3 {[%clk 0:01:27]} 39... Rh2 {[%clk 0:00:14.6]} 40. c4 {[%clk 0:01:18.4]}
40... Rxh3 {[%clk 0:00:14.7]} 41. c5 {[%clk 0:01:18.9]} 41... Rh2 {[%clk
0:00:12.9]} 42. c6 {[%clk 0:01:16.1]} 42... Rc2 {[%clk 0:00:13.4]} 43. Kd5
{[%clk 0:01:16.5]} 43... Rd2+ {[%clk 0:00:13.9]} 44. Ke6 {[%clk 0:01:13.9]}
44... Rc2 {[%clk 0:00:13.2]} 45. Kd6 {[%clk 0:01:12.3]} 45... h5 {[%clk
0:00:09.6]} 46. c7 {[%clk 0:01:10.3]} 46... h4 {[%clk 0:00:04.1]} 47. Rc5 {[%clk
0:01:09.5]} 47... Rd2+ {[%clk 0:00:04.5]} 48. Kc6 {[%clk 0:01:06.7]} 48... Rxb2
{[%clk 0:00:02.7]} 49. c8=Q {[%clk 0:01:06.6]} 49... Rb6+ {[%clk 0:00:03.6]} 50.
Kd5 {[%clk 0:01:06.6]} 1-0

[Event "Late-Titled-Tuesday-Blitz-January-16-2024"]
[Site "Chess.com"]
[Date "2024.01.16"]
[Round "4"]
[White "MikaelyanArman"]
[Black "only_strong_moves"]
[Result "1-0"]
[WhiteElo "2855"]
[BlackElo "2557"]
[TimeControl "180+1"]
[EndTime "14:37:25 PST"]
[Termination "MikaelyanArman won by checkmate"]

1. d4 {[%clk 0:03:00.9]} 1... Nf6 {[%clk 0:02:59.7]} 2. c4 {[%clk 0:02:59.2]}
2... e6 {[%clk 0:03:00.1]} 3. Nc3 {[%clk 0:02:58.9]} 3... Bb4 {[%clk 0:03:00.3]}
4. Qb3 {[%clk 0:02:58.7]} 4... Nc6 {[%clk 0:02:55.5]} 5. e3 {[%clk 0:02:58.2]}
5... O-O {[%clk 0:02:52]} 6. Nf3 {[%clk 0:02:58]} 6... Re8 {[%clk 0:02:51.4]} 7.
Bd2 {[%clk 0:02:56.4]} 7... b6 {[%clk 0:02:46.3]} 8. d5 {[%clk 0:02:49.6]} 8...
Bxc3 {[%clk 0:02:31.1]} 9. Bxc3 {[%clk 0:02:48.9]} 9... Na5 {[%clk 0:02:24.2]}
10. Qd1 {[%clk 0:02:45]} 10... d6 {[%clk 0:02:15.5]} 11. b4 {[%clk 0:02:35.9]}
11... Nb7 {[%clk 0:02:15]} 12. Be2 {[%clk 0:02:31.5]} 12... a5 {[%clk
0:02:01.2]} 13. a3 {[%clk 0:02:31.3]} 13... axb4 {[%clk 0:01:50.4]} 14. axb4
{[%clk 0:02:32.2]} 14... Rxa1 {[%clk 0:01:49.6]} 15. Bxa1 {[%clk 0:02:32.7]}
15... b5 {[%clk 0:01:36.3]} 16. dxe6 {[%clk 0:02:31.5]} 16... Bxe6 {[%clk
0:01:24.5]} 17. cxb5 {[%clk 0:02:31.6]} 17... Nd5 {[%clk 0:01:24.5]} 18. O-O
{[%clk 0:02:29.3]} 18... f6 {[%clk 0:01:21.8]} 19. Bc4 {[%clk 0:02:23.7]} 19...
Nb6 {[%clk 0:01:14.3]} 20. Bxe6+ {[%clk 0:02:23.7]} 20... Rxe6 {[%clk
0:01:15.2]} 21. Nd4 {[%clk 0:02:24.5]} 21... Re8 {[%clk 0:01:10.4]} 22. Qf3
{[%clk 0:02:22.2]} 22... d5 {[%clk 0:01:09.6]} 23. Nc6 {[%clk 0:02:20.2]} 23...
Qd6 {[%clk 0:01:05.7]} 24. Bd4 {[%clk 0:02:20.2]} 24... Nc4 {[%clk 0:00:47.4]}
25. Rd1 {[%clk 0:02:15.3]} 25... Re4 {[%clk 0:00:37.6]} 26. h3 {[%clk
0:02:12.9]} 26... Na3 {[%clk 0:00:37.2]} 27. Ra1 {[%clk 0:01:43.5]} 27... Nxb5
{[%clk 0:00:15.7]} 28. Ra8+ {[%clk 0:01:42.9]} 28... Kf7 {[%clk 0:00:16]} 29.
Qh5+ {[%clk 0:01:42.9]} 29... g6 {[%clk 0:00:02.8]} 30. Qxh7+ {[%clk 0:01:41.9]}
30... Ke6 {[%clk 0:00:03.5]} 31. Re8+ {[%clk 0:01:21.3]} 31... Kf5 {[%clk
0:00:04.1]} 32. Ne7+ {[%clk 0:01:17.3]} 32... Rxe7 {[%clk 0:00:03.9]} 33. Rxe7
{[%clk 0:01:17.6]} 33... Nxd4 {[%clk 0:00:04.5]} 34. exd4 {[%clk 0:01:14]} 34...
Qf4 {[%clk 0:00:05.4]} 35. g4+ {[%clk 0:00:48.6]} 35... Kg5 {[%clk 0:00:05.4]}
36. h4+ {[%clk 0:00:48.6]} 36... Kxg4 {[%clk 0:00:05.2]} 37. Qxg6+ {[%clk
0:00:49]} 37... Kf3 {[%clk 0:00:03.4]} 38. Qg2# {[%clk 0:00:48.5]} 1-0